[Event "Titled Tuesday Blitz January 03 Late 2023"]
[White "Van den Dikkenberg, Erik"]
[Black "Levitskiy, Andrey"]
[WhiteFideId "1005880"]
[BlackFideId "14132885"]
[WhiteElo "2091"]
[BlackElo "2304"]
[Result "0-1"]
[Round "01"]
[TimeControl "180+2"]
[Date "2023.01.03"]
[WhiteClock "0:00:19"]
[BlackClock "0:00:29"]

1. e4 {[%clk 0:03:00]}  e6 {[%clk 0:02:58]} 2. d4 {[%clk 0:02:59]}  d5 {[%clk 0:02:58]} 3. Nd2 {[%clk 0:02:59]}  c5 {[%clk 0:02:57]} 4. exd5 {[%clk 0:02:55]}  Qxd5 {[%clk 0:02:58]} 5. Ngf3 {[%clk 0:02:55]}  cxd4 {[%clk 0:02:57]} 6. Bc4 {[%clk 0:02:55]}  Qd6 {[%clk 0:02:58]} 7. O-O {[%clk 0:02:55]}  Nf6 {[%clk 0:02:56]} 8. Re1 {[%clk 0:02:55]}  Nc6 {[%clk 0:02:48]} 9. Nb3 {[%clk 0:02:45]}  Bd7 {[%clk 0:02:34]} 10. Nbxd4 {[%clk 0:02:41]}  Nxd4 {[%clk 0:02:35]} 11. Nxd4 {[%clk 0:02:40]}  Qc7 {[%clk 0:02:25]} 12. Bb3 {[%clk 0:02:10]}  Be7 {[%clk 0:02:20]} 13. Bg5 {[%clk 0:02:04]}  O-O {[%clk 0:01:37]} 14. Qf3 {[%clk 0:01:52]}  Rfe8 {[%clk 0:01:33]} 15. Rad1 {[%clk 0:01:49]}  Rad8 {[%clk 0:01:31]} 16. c3 {[%clk 0:01:32]}  a6 {[%clk 0:01:11]} 17. h4 {[%clk 0:01:31]}  h6 {[%clk 0:01:07]} 18. Bf4 {[%clk 0:01:21]}  Qa5 {[%clk 0:01:00]} 19. Re5 {[%clk 0:01:15]}  Qb6 {[%clk 0:01:00]} 20. Qg3 {[%clk 0:01:03]}  Kh8 {[%clk 0:00:56]} 21. Bxh6 {[%clk 0:00:40]}  gxh6 {[%clk 0:00:54]} 22. Qf4 {[%clk 0:00:40]}  Ng8 {[%clk 0:00:47]} 23. Qxf7 {[%clk 0:00:35]}  Bf6 {[%clk 0:00:45]} 24. Rh5 {[%clk 0:00:25]}  Bg7 {[%clk 0:00:36]} 25. Bc2 {[%clk 0:00:21]}  e5 {[%clk 0:00:30]} 26. Qg6 {[%clk 0:00:19]}  Qxg6 {[%clk 0:00:29]} 0-1


[Site "https://www.chess.com"]

[Event "Titled Tuesday Blitz January 03 Late 2023"]
[White "Carnicelli, Valerio"]
[Black "Lock, Gavin R"]
[WhiteFideId "856185"]
[BlackFideId "408646"]
[WhiteElo "2370"]
[BlackElo "2083"]
[Result "1-0"]
[Round "01"]
[TimeControl "180+2"]
[Date "2023.01.03"]
[WhiteClock "0:01:02"]
[BlackClock "0:00:07"]

1. b3 {[%clk 0:03:00]}  d5 {[%clk 0:02:58]} 2. Bb2 {[%clk 0:03:00]}  c5 {[%clk 0:02:55]} 3. Nf3 {[%clk 0:02:59]}  f6 {[%clk 0:02:53]} 4. c4 {[%clk 0:02:58]}  d4 {[%clk 0:02:47]} 5. e3 {[%clk 0:02:59]}  e5 {[%clk 0:02:48]} 6. Nxe5 {[%clk 0:02:56]}  fxe5 {[%clk 0:02:01]} 7. Qh5+ {[%clk 0:02:56]}  g6 {[%clk 0:01:50]} 8. Qxe5+ {[%clk 0:02:56]}  Qe7 {[%clk 0:01:49]} 9. Qxh8 {[%clk 0:02:18]}  Nf6 {[%clk 0:01:47]} 10. g3 {[%clk 0:02:07]}  Nc6 {[%clk 0:01:38]} 11. Bg2 {[%clk 0:02:04]}  Bd7 {[%clk 0:01:30]} 12. O-O {[%clk 0:01:55]}  O-O-O {[%clk 0:01:29]} 13. exd4 {[%clk 0:01:55]}  Bg7 {[%clk 0:01:12]} 14. Qxd8+ {[%clk 0:01:51]}  Qxd8 {[%clk 0:01:13]} 15. dxc5 {[%clk 0:01:46]}  Nh5 {[%clk 0:00:58]} 16. Bxg7 {[%clk 0:01:37]}  Nxg7 {[%clk 0:00:59]} 17. Nc3 {[%clk 0:01:37]}  Nd4 {[%clk 0:00:55]} 18. Nd5 {[%clk 0:01:33]}  Bc6 {[%clk 0:00:49]} 19. b4 {[%clk 0:01:30]}  Ngf5 {[%clk 0:00:37]} 20. Rab1 {[%clk 0:01:22]}  h5 {[%clk 0:00:30]} 21. Rfe1 {[%clk 0:01:20]}  h4 {[%clk 0:00:19]} 22. b5 {[%clk 0:01:18]}  Bxd5 {[%clk 0:00:19]} 23. cxd5 {[%clk 0:01:18]}  hxg3 {[%clk 0:00:19]} 24. hxg3 {[%clk 0:01:18]}  Qh8 {[%clk 0:00:14]} 25. d6 {[%clk 0:01:14]}  Qh5 {[%clk 0:00:07]} 26. c6 {[%clk 0:01:02]}  Nf3+ {[%clk 0:00:06]} 27. Bxf3 {[%clk 0:01:02]}  Qxf3 {[%clk 0:00:07]} 28. Re8# {[%clk 0:01:02]} 1-0


[Site "https://www.chess.com"]

[Event "Titled Tuesday Blitz January 03 Late 2023"]
[White "Onslow, Alfie"]
[Black "Martynov, Pavel"]
[WhiteFideId "436976"]
[BlackFideId "4101260"]
[WhiteElo "2157"]
[BlackElo "2414"]
[Result "1-0"]
[Round "01"]
[TimeControl "180+2"]
[Date "2023.01.03"]
[WhiteClock "0:00:13"]
[BlackClock "0:00:18"]

1. e4 {[%clk 0:02:59]}  c5 {[%clk 0:02:59]} 2. Nc3 {[%clk 0:02:58]}  Nc6 {[%clk 0:02:58]} 3. Bb5 {[%clk 0:02:57]}  Qc7 {[%clk 0:02:58]} 4. d3 {[%clk 0:02:52]}  e6 {[%clk 0:02:58]} 5. f4 {[%clk 0:02:52]}  a6 {[%clk 0:02:58]} 6. Bxc6 {[%clk 0:02:50]}  Qxc6 {[%clk 0:02:58]} 7. Nf3 {[%clk 0:02:50]}  b5 {[%clk 0:02:56]} 8. O-O {[%clk 0:02:49]}  Bb7 {[%clk 0:02:56]} 9. Qe2 {[%clk 0:02:49]}  Nf6 {[%clk 0:02:55]} 10. e5 {[%clk 0:02:47]}  Nd5 {[%clk 0:02:54]} 11. Nxd5 {[%clk 0:02:46]}  Qxd5 {[%clk 0:02:54]} 12. c4 {[%clk 0:02:44]}  Qc6 {[%clk 0:02:50]} 13. Be3 {[%clk 0:02:42]}  d5 {[%clk 0:02:41]} 14. b3 {[%clk 0:02:34]}  Be7 {[%clk 0:02:38]} 15. Rae1 {[%clk 0:02:33]}  d4 {[%clk 0:02:35]} 16. Bd2 {[%clk 0:02:31]}  b4 {[%clk 0:02:28]} 17. Ng5 {[%clk 0:02:30]}  h6 {[%clk 0:01:50]} 18. Ne4 {[%clk 0:02:30]}  g6 {[%clk 0:01:50]} 19. Rf3 {[%clk 0:02:09]}  h5 {[%clk 0:01:49]} 20. Qf2 {[%clk 0:02:04]}  a5 {[%clk 0:01:48]} 21. Ng5 {[%clk 0:02:01]}  h4 {[%clk 0:01:37]} 22. Re2 {[%clk 0:01:41]}  a4 {[%clk 0:01:35]} 23. Be1 {[%clk 0:01:36]}  axb3 {[%clk 0:01:34]} 24. axb3 {[%clk 0:01:37]}  Ra1 {[%clk 0:01:29]} 25. Rb2 {[%clk 0:01:31]}  Bxg5 {[%clk 0:01:17]} 26. fxg5 {[%clk 0:01:31]}  Qc7 {[%clk 0:01:18]} 27. Rf4 {[%clk 0:01:24]}  Qxe5 {[%clk 0:01:16]} 28. Re2 {[%clk 0:01:25]}  Qc7 {[%clk 0:00:59]} 29. Rxh4 {[%clk 0:01:23]}  Rf8 {[%clk 0:00:47]} 30. Qf6 {[%clk 0:01:09]}  Qc6 {[%clk 0:00:39]} 31. Rg4 {[%clk 0:00:58]}  Rd1 {[%clk 0:00:36]} 32. Rg3 {[%clk 0:00:53]}  Rb1 {[%clk 0:00:35]} 33. h4 {[%clk 0:00:50]}  Qd6 {[%clk 0:00:23]} 34. Kh2 {[%clk 0:00:48]}  Kd7 {[%clk 0:00:21]} 35. h5 {[%clk 0:00:47]}  gxh5 {[%clk 0:00:20]} 36. g6 {[%clk 0:00:42]}  h4 {[%clk 0:00:21]} 37. Qxh4 {[%clk 0:00:42]}  fxg6 {[%clk 0:00:17]} 38. Qh7+ {[%clk 0:00:36]}  Kc8 {[%clk 0:00:17]} 39. Qxg6 {[%clk 0:00:31]}  Rh8+ {[%clk 0:00:17]} 40. Kg1 {[%clk 0:00:31]}  Kb8 {[%clk 0:00:11]} 41. Rxe6 {[%clk 0:00:18]}  Qc7 {[%clk 0:00:11]} 42. Qg7 {[%clk 0:00:10]}  Rd8 {[%clk 0:00:11]} 43. Re7 {[%clk 0:00:10]}  Qc6 {[%clk 0:00:09]} 44. Rg6 {[%clk 0:00:08]}  Qc8 {[%clk 0:00:08]} 45. Rb6 {[%clk 0:00:07]}  Rxe1+ {[%clk 0:00:05]} 46. Rxe1 {[%clk 0:00:08]}  Rd7 {[%clk 0:00:06]} 47. Re7 {[%clk 0:00:07]}  Ka7 {[%clk 0:00:04]} 48. Rxb7+ {[%clk 0:00:07]}  Rxb7 {[%clk 0:00:04]} 49. Rxb7+ {[%clk 0:00:07]}  Qxb7 {[%clk 0:00:05]} 50. Qxb7+ {[%clk 0:00:07]}  Kxb7 {[%clk 0:00:06]} 51. Kf2 {[%clk 0:00:08]}  Kc6 {[%clk 0:00:07]} 52. Kf3 {[%clk 0:00:08]}  Kd6 {[%clk 0:00:08]} 53. Ke4 {[%clk 0:00:09]}  Ke6 {[%clk 0:00:09]} 54. g4 {[%clk 0:00:09]}  Kf6 {[%clk 0:00:09]} 55. Kd5 {[%clk 0:00:10]}  Kg5 {[%clk 0:00:08]} 56. Kxc5 {[%clk 0:00:11]}  Kf4 {[%clk 0:00:09]} 57. Kxd4 {[%clk 0:00:12]}  Kf3 {[%clk 0:00:09]} 58. g5 {[%clk 0:00:12]}  Ke2 {[%clk 0:00:10]} 59. g6 {[%clk 0:00:13]}  Kd2 {[%clk 0:00:11]} 60. g7 {[%clk 0:00:14]}  Kc2 {[%clk 0:00:12]} 61. g8=Q {[%clk 0:00:14]}  Kxb3 {[%clk 0:00:13]} 62. c5+ {[%clk 0:00:14]}  Kc2 {[%clk 0:00:14]} 63. c6 {[%clk 0:00:15]}  b3 {[%clk 0:00:15]} 64. Qc4+ {[%clk 0:00:15]}  Kb2 {[%clk 0:00:14]} 65. c7 {[%clk 0:00:16]}  Ka1 {[%clk 0:00:15]} 66. c8=Q {[%clk 0:00:14]}  b2 {[%clk 0:00:16]} 67. Q8a6+ {[%clk 0:00:14]}  Kb1 {[%clk 0:00:17]} 68. Qab5 {[%clk 0:00:13]}  Ka1 {[%clk 0:00:17]} 69. Qca4+ {[%clk 0:00:12]}  Kb1 {[%clk 0:00:17]} 70. Qab3 {[%clk 0:00:13]}  Ka1 {[%clk 0:00:18]} 71. Qxb2# {[%clk 0:00:13]} 1-0


[Site "https://www.chess.com"]

[Event "Titled Tuesday Blitz January 03 Late 2023"]
[White "Rosen, Eric"]
[Black "Guo, Josh"]
[WhiteFideId "2032562"]
[BlackFideId "2682427"]
[WhiteElo "2349"]
[BlackElo "2112"]
[Result "1-0"]
[Round "01"]
[TimeControl "180+2"]
[Date "2023.01.03"]
[WhiteClock "0:02:59"]
[BlackClock "0:00:51"]

1. d4 {[%clk 0:03:00]}  Nf6 {[%clk 0:02:58]} 2. Bf4 {[%clk 0:03:01]}  d5 {[%clk 0:02:57]} 3. e3 {[%clk 0:02:57]}  c5 {[%clk 0:02:57]} 4. Nf3 {[%clk 0:02:58]}  Nc6 {[%clk 0:02:57]} 5. Nbd2 {[%clk 0:02:58]}  e6 {[%clk 0:02:53]} 6. c3 {[%clk 0:02:58]}  Bd6 {[%clk 0:02:49]} 7. Bg3 {[%clk 0:02:58]}  O-O {[%clk 0:02:48]} 8. Bb5 {[%clk 0:02:58]}  Ne7 {[%clk 0:02:17]} 9. Bd3 {[%clk 0:02:57]}  b6 {[%clk 0:02:10]} 10. e4 {[%clk 0:02:57]}  dxe4 {[%clk 0:01:28]} 11. Nxe4 {[%clk 0:02:58]}  Nxe4 {[%clk 0:01:05]} 12. Bxe4 {[%clk 0:02:59]}  Rb8 {[%clk 0:00:51]} 13. dxc5 {[%clk 0:02:59]} 1-0


[Site "https://www.chess.com"]

[Event "Titled Tuesday Blitz January 03 Late 2023"]
[White "Itkis, Boris"]
[Black "Pinheiro, Iung Alicio de O."]
[WhiteFideId "1209167"]
[BlackFideId "2104350"]
[WhiteElo "2329"]
[BlackElo "2306"]
[Result "1-0"]
[Round "01"]
[TimeControl "180+2"]
[Date "2023.01.03"]
[WhiteClock "0:00:18"]
[BlackClock "0:00:09"]

1. c4 {[%clk 0:03:00]}  c5 {[%clk 0:02:58]} 2. Nf3 {[%clk 0:03:00]}  Nc6 {[%clk 0:02:55]} 3. Nc3 {[%clk 0:03:01]}  g6 {[%clk 0:02:55]} 4. e3 {[%clk 0:02:59]}  Nf6 {[%clk 0:02:55]} 5. d4 {[%clk 0:03:00]}  cxd4 {[%clk 0:02:55]} 6. exd4 {[%clk 0:03:01]}  d5 {[%clk 0:02:55]} 7. cxd5 {[%clk 0:03:02]}  Nxd5 {[%clk 0:02:56]} 8. Qb3 {[%clk 0:03:02]}  e6 {[%clk 0:02:56]} 9. Nxd5 {[%clk 0:02:57]}  exd5 {[%clk 0:02:55]} 10. Bb5 {[%clk 0:02:57]}  Bg7 {[%clk 0:02:14]} 11. O-O {[%clk 0:02:54]}  O-O {[%clk 0:02:14]} 12. Bxc6 {[%clk 0:02:53]}  bxc6 {[%clk 0:02:13]} 13. Bf4 {[%clk 0:02:54]}  Qb6 {[%clk 0:01:33]} 14. Qc3 {[%clk 0:02:50]}  f6 {[%clk 0:01:29]} 15. Bd6 {[%clk 0:02:48]}  Re8 {[%clk 0:01:28]} 16. Rfe1 {[%clk 0:02:46]}  Bg4 {[%clk 0:01:22]} 17. Nd2 {[%clk 0:02:44]}  a5 {[%clk 0:01:17]} 18. Bc5 {[%clk 0:02:39]}  Qb7 {[%clk 0:01:16]} 19. h3 {[%clk 0:02:38]}  Bf5 {[%clk 0:01:14]} 20. Nb3 {[%clk 0:02:31]}  a4 {[%clk 0:01:12]} 21. Na5 {[%clk 0:02:24]}  Qb5 {[%clk 0:01:12]} 22. Bb4 {[%clk 0:02:16]}  Bd7 {[%clk 0:01:04]} 23. a3 {[%clk 0:02:12]}  Bh6 {[%clk 0:00:44]} 24. Rad1 {[%clk 0:01:50]}  Bf4 {[%clk 0:00:43]} 25. b3 {[%clk 0:01:48]}  Bc7 {[%clk 0:00:40]} 26. bxa4 {[%clk 0:01:47]}  Qxa4 {[%clk 0:00:41]} 27. Nb3 {[%clk 0:01:47]}  Qb5 {[%clk 0:00:39]} 28. Nc5 {[%clk 0:01:47]}  Bf5 {[%clk 0:00:33]} 29. g4 {[%clk 0:01:39]}  Be4 {[%clk 0:00:33]} 30. f3 {[%clk 0:01:39]}  Bg3 {[%clk 0:00:32]} 31. fxe4 {[%clk 0:01:32]}  Bxe1 {[%clk 0:00:32]} 32. Rxe1 {[%clk 0:01:33]}  dxe4 {[%clk 0:00:31]} 33. Qb3+ {[%clk 0:01:33]}  Kh8 {[%clk 0:00:31]} 34. Qf7 {[%clk 0:01:32]}  Rf8 {[%clk 0:00:31]} 35. Qc7 {[%clk 0:01:24]}  Qc4 {[%clk 0:00:27]} 36. Nxe4 {[%clk 0:01:05]}  Rf7 {[%clk 0:00:20]} 37. Qd6 {[%clk 0:00:59]}  Raf8 {[%clk 0:00:17]} 38. Qc5 {[%clk 0:00:51]}  Qa2 {[%clk 0:00:14]} 39. Qxc6 {[%clk 0:00:44]}  Re8 {[%clk 0:00:13]} 40. d5 {[%clk 0:00:37]}  Re5 {[%clk 0:00:12]} 41. d6 {[%clk 0:00:26]}  Qe6 {[%clk 0:00:11]} 42. Bc3 {[%clk 0:00:21]}  Rd5 {[%clk 0:00:09]} 43. Nxf6 {[%clk 0:00:19]}  Qxd6 {[%clk 0:00:09]} 44. Nxd5+ {[%clk 0:00:18]} 1-0


[Site "https://www.chess.com"]

[Event "Titled Tuesday Blitz January 03 Late 2023"]
[White "Yaran, Siar"]
[Black "Jenkins, Drake"]
[WhiteFideId "6323006"]
[BlackFideId "2022397"]
[WhiteElo "2288"]
[BlackElo "2130"]
[Result "1-0"]
[Round "01"]
[TimeControl "180+2"]
[Date "2023.01.03"]
[WhiteClock "0:00:09"]
[BlackClock "0:00:02"]

1. d4 {[%clk 0:03:00]}  Nf6 {[%clk 0:02:54]} 2. c4 {[%clk 0:03:00]}  c5 {[%clk 0:02:54]} 3. d5 {[%clk 0:03:01]}  b5 {[%clk 0:02:54]} 4. Nd2 {[%clk 0:02:58]}  b4 {[%clk 0:02:51]} 5. e4 {[%clk 0:02:58]}  d6 {[%clk 0:02:51]} 6. Bd3 {[%clk 0:02:59]}  g6 {[%clk 0:02:51]} 7. Ne2 {[%clk 0:02:55]}  Bg7 {[%clk 0:02:51]} 8. O-O {[%clk 0:02:55]}  O-O {[%clk 0:02:51]} 9. h3 {[%clk 0:02:52]}  e6 {[%clk 0:02:49]} 10. Rb1 {[%clk 0:02:50]}  exd5 {[%clk 0:02:48]} 11. cxd5 {[%clk 0:02:50]}  a5 {[%clk 0:02:44]} 12. Ng3 {[%clk 0:02:35]}  Ba6 {[%clk 0:02:43]} 13. Bxa6 {[%clk 0:02:32]}  Nxa6 {[%clk 0:02:35]} 14. Nc4 {[%clk 0:02:30]}  Re8 {[%clk 0:02:33]} 15. Qd3 {[%clk 0:02:23]}  Nc7 {[%clk 0:02:26]} 16. a4 {[%clk 0:02:17]}  bxa3 {[%clk 0:02:00]} 17. bxa3 {[%clk 0:02:17]}  a4 {[%clk 0:01:53]} 18. Bf4 {[%clk 0:02:14]}  Bf8 {[%clk 0:01:43]} 19. Rb6 {[%clk 0:02:11]}  Ra6 {[%clk 0:01:37]} 20. Rfb1 {[%clk 0:02:10]}  Rxb6 {[%clk 0:01:28]} 21. Rxb6 {[%clk 0:02:11]}  Nd7 {[%clk 0:01:13]} 22. Rc6 {[%clk 0:01:54]}  Nb5 {[%clk 0:00:56]} 23. Nxd6 {[%clk 0:01:41]}  Bxd6 {[%clk 0:00:36]} 24. Bxd6 {[%clk 0:01:36]}  Nd4 {[%clk 0:00:35]} 25. Ra6 {[%clk 0:01:14]}  Nb8 {[%clk 0:00:30]} 26. Bxb8 {[%clk 0:00:53]}  Qxb8 {[%clk 0:00:30]} 27. Rxa4 {[%clk 0:00:53]}  h5 {[%clk 0:00:15]} 28. Rc4 {[%clk 0:00:34]}  h4 {[%clk 0:00:10]} 29. Nf1 {[%clk 0:00:35]}  Qd6 {[%clk 0:00:07]} 30. Ne3 {[%clk 0:00:29]}  Ra8 {[%clk 0:00:04]} 31. Ng4 {[%clk 0:00:18]}  Qa6 {[%clk 0:00:05]} 32. Rxd4 {[%clk 0:00:16]}  cxd4 {[%clk 0:00:05]} 33. Qxd4 {[%clk 0:00:17]}  Qxa3 {[%clk 0:00:04]} 34. Nf6+ {[%clk 0:00:17]}  Kf8 {[%clk 0:00:05]} 35. Nd7+ {[%clk 0:00:17]}  Ke7 {[%clk 0:00:05]} 36. Qf6+ {[%clk 0:00:10]}  Ke8 {[%clk 0:00:03]} 37. Ne5 {[%clk 0:00:09]}  Qa1+ {[%clk 0:00:03]} 38. Kh2 {[%clk 0:00:09]}  Ra7 {[%clk 0:00:03]} 39. d6 {[%clk 0:00:09]}  Qd4 {[%clk 0:00:02]} 40. Qh8# {[%clk 0:00:09]} 1-0


[Site "https://www.chess.com"]

[Event "Titled Tuesday Blitz January 03 Late 2023"]
[White "Di Nicolantonio, Lucas"]
[Black "Finkelstein, Alan"]
[WhiteFideId "680460"]
[BlackFideId "30950961"]
[WhiteElo "2376"]
[BlackElo "2152"]
[Result "1/2-1/2"]
[Round "01"]
[TimeControl "180+2"]
[Date "2023.01.03"]
[WhiteClock "0:00:03"]
[BlackClock "0:00:07"]

1. e4 {[%clk 0:02:57]}  c5 {[%clk 0:03:00]} 2. Nf3 {[%clk 0:02:56]}  e6 {[%clk 0:02:59]} 3. c3 {[%clk 0:02:55]}  Nc6 {[%clk 0:02:59]} 4. d4 {[%clk 0:02:55]}  d5 {[%clk 0:03:00]} 5. e5 {[%clk 0:02:55]}  Qb6 {[%clk 0:03:00]} 6. a3 {[%clk 0:02:54]}  c4 {[%clk 0:03:00]} 7. Nbd2 {[%clk 0:02:53]}  Na5 {[%clk 0:03:00]} 8. h4 {[%clk 0:02:48]}  Bd7 {[%clk 0:02:57]} 9. h5 {[%clk 0:02:48]}  h6 {[%clk 0:02:56]} 10. Rb1 {[%clk 0:02:44]}  Qc7 {[%clk 0:02:54]} 11. Nh4 {[%clk 0:02:24]}  Ne7 {[%clk 0:02:51]} 12. Qg4 {[%clk 0:02:18]}  Ba4 {[%clk 0:02:45]} 13. b4 {[%clk 0:01:56]}  cxb3 {[%clk 0:02:44]} 14. Bb2 {[%clk 0:01:54]}  Nc4 {[%clk 0:02:27]} 15. Nxc4 {[%clk 0:01:39]}  dxc4 {[%clk 0:02:28]} 16. d5 {[%clk 0:01:40]}  Qxe5+ {[%clk 0:02:14]} 17. Be2 {[%clk 0:01:40]}  exd5 {[%clk 0:02:06]} 18. Nf3 {[%clk 0:01:29]}  Qf5 {[%clk 0:01:53]} 19. Qxf5 {[%clk 0:01:17]}  Nxf5 {[%clk 0:01:54]} 20. Rd1 {[%clk 0:01:18]}  O-O-O {[%clk 0:01:33]} 21. g4 {[%clk 0:01:17]}  Ne7 {[%clk 0:01:18]} 22. Ne5 {[%clk 0:01:17]}  Be8 {[%clk 0:01:16]} 23. O-O {[%clk 0:01:02]}  f6 {[%clk 0:01:13]} 24. Nf3 {[%clk 0:01:02]}  Nc6 {[%clk 0:01:08]} 25. Rd2 {[%clk 0:01:00]}  Bc5 {[%clk 0:00:58]} 26. Rfd1 {[%clk 0:01:00]}  Bf7 {[%clk 0:00:57]} 27. Kg2 {[%clk 0:00:56]}  Rhe8 {[%clk 0:00:55]} 28. Nh4 {[%clk 0:00:57]}  b5 {[%clk 0:00:26]} 29. Nf5 {[%clk 0:00:56]}  Bf8 {[%clk 0:00:25]} 30. Bf3 {[%clk 0:00:53]}  Re5 {[%clk 0:00:16]} 31. Ne3 {[%clk 0:00:52]}  Ne7 {[%clk 0:00:14]} 32. a4 {[%clk 0:00:47]}  bxa4 {[%clk 0:00:14]} 33. Nxc4 {[%clk 0:00:48]}  Re6 {[%clk 0:00:11]} 34. Ne3 {[%clk 0:00:45]}  Red6 {[%clk 0:00:11]} 35. c4 {[%clk 0:00:44]}  Nc6 {[%clk 0:00:06]} 36. cxd5 {[%clk 0:00:44]}  Ne5 {[%clk 0:00:06]} 37. Bxe5 {[%clk 0:00:39]}  fxe5 {[%clk 0:00:06]} 38. Nc4 {[%clk 0:00:40]}  R6d7 {[%clk 0:00:06]} 39. Nxe5 {[%clk 0:00:40]}  Re7 {[%clk 0:00:04]} 40. Nc6 {[%clk 0:00:40]}  Red7 {[%clk 0:00:03]} 41. Nxd8 {[%clk 0:00:38]}  Kxd8 {[%clk 0:00:04]} 42. d6 {[%clk 0:00:37]}  a3 {[%clk 0:00:03]} 43. Bc6 {[%clk 0:00:38]}  b2 {[%clk 0:00:01]} 44. Bxd7 {[%clk 0:00:38]}  Kxd7 {[%clk 0:00:02]} 45. Kf3 {[%clk 0:00:32]}  Ba2 {[%clk 0:00:02]} 46. Rd3 {[%clk 0:00:31]}  b1=Q {[%clk 0:00:03]} 47. Rxb1 {[%clk 0:00:31]}  Bxb1 {[%clk 0:00:03]} 48. Rxa3 {[%clk 0:00:31]}  Kxd6 {[%clk 0:00:02]} 49. Rxa7 {[%clk 0:00:31]}  Bh7 {[%clk 0:00:02]} 50. Kg3 {[%clk 0:00:28]}  Ke6 {[%clk 0:00:03]} 51. f4 {[%clk 0:00:27]}  Be7 {[%clk 0:00:03]} 52. f5+ {[%clk 0:00:24]}  Kf7 {[%clk 0:00:04]} 53. Kf4 {[%clk 0:00:23]}  Kf6 {[%clk 0:00:05]} 54. Ra6+ {[%clk 0:00:23]}  Kf7 {[%clk 0:00:05]} 55. Ra7 {[%clk 0:00:18]}  Kf6 {[%clk 0:00:04]} 56. Ra6+ {[%clk 0:00:18]}  Kf7 {[%clk 0:00:04]} 57. Ke5 {[%clk 0:00:07]}  Bg8 {[%clk 0:00:04]} 58. Ra7 {[%clk 0:00:07]}  Kf8 {[%clk 0:00:04]} 59. Ra8+ {[%clk 0:00:07]}  Kf7 {[%clk 0:00:04]} 60. Ra7 {[%clk 0:00:08]}  Kf8 {[%clk 0:00:04]} 61. Ke4 {[%clk 0:00:05]}  Bf7 {[%clk 0:00:04]} 62. Ra8+ {[%clk 0:00:05]}  Be8 {[%clk 0:00:04]} 63. Ke5 {[%clk 0:00:04]}  Kf7 {[%clk 0:00:05]} 64. Ra7 {[%clk 0:00:04]}  Kf8 {[%clk 0:00:05]} 65. Ke6 {[%clk 0:00:03]}  Bf7+ {[%clk 0:00:06]} 66. Kd7 {[%clk 0:00:04]}  Be8+ {[%clk 0:00:06]} 67. Ke6 {[%clk 0:00:05]}  Bf7+ {[%clk 0:00:06]} 68. Ke5 {[%clk 0:00:05]}  Be8 {[%clk 0:00:07]} 69. Ra8 {[%clk 0:00:05]}  Kf7 {[%clk 0:00:07]} 70. Kf4 {[%clk 0:00:05]}  Bg5+ {[%clk 0:00:07]} 71. Kg3 {[%clk 0:00:05]}  Bf6 {[%clk 0:00:06]} 72. Ra7+ {[%clk 0:00:06]}  Be7 {[%clk 0:00:06]} 73. Ra6 {[%clk 0:00:06]}  Kf8 {[%clk 0:00:06]} 74. Ra7 {[%clk 0:00:04]}  Kf7 {[%clk 0:00:06]} 75. Ra6 {[%clk 0:00:03]}  Kf8 {[%clk 0:00:07]} 76. Ra7 {[%clk 0:00:03]}  Kf7 {[%clk 0:00:07]} 1/2-1/2


[Site "https://www.chess.com"]

[Event "Titled Tuesday Blitz January 03 Late 2023"]
[White "Papp, Petra"]
[Black "Suvorov, Alexander"]
[WhiteFideId "739049"]
[BlackFideId "12977063"]
[WhiteElo "2343"]
[BlackElo "2338"]
[Result "0-1"]
[Round "01"]
[TimeControl "180+2"]
[Date "2023.01.03"]
[WhiteClock "0:00:01"]
[BlackClock "0:00:10"]

1. d4 {[%clk 0:03:00]}  Nf6 {[%clk 0:02:56]} 2. Nc3 {[%clk 0:03:00]}  d5 {[%clk 0:02:55]} 3. Bf4 {[%clk 0:03:00]}  a6 {[%clk 0:02:52]} 4. e3 {[%clk 0:02:54]}  g6 {[%clk 0:02:52]} 5. h4 {[%clk 0:02:51]}  h6 {[%clk 0:02:50]} 6. Nf3 {[%clk 0:02:48]}  Bg7 {[%clk 0:02:50]} 7. Ne5 {[%clk 0:02:47]}  Nbd7 {[%clk 0:02:49]} 8. Be2 {[%clk 0:02:44]}  c5 {[%clk 0:02:39]} 9. Qd2 {[%clk 0:02:42]}  e6 {[%clk 0:02:32]} 10. O-O-O {[%clk 0:02:39]}  b5 {[%clk 0:02:27]} 11. g4 {[%clk 0:02:20]}  b4 {[%clk 0:02:25]} 12. Na4 {[%clk 0:02:01]}  Ne4 {[%clk 0:02:10]} 13. Qe1 {[%clk 0:01:58]}  Qa5 {[%clk 0:02:07]} 14. b3 {[%clk 0:01:51]}  Nxe5 {[%clk 0:02:04]} 15. Bxe5 {[%clk 0:01:46]}  Bxe5 {[%clk 0:01:57]} 16. dxe5 {[%clk 0:01:46]}  Bd7 {[%clk 0:01:57]} 17. f3 {[%clk 0:01:40]}  Nc3 {[%clk 0:01:51]} 18. Nxc3 {[%clk 0:01:32]}  bxc3 {[%clk 0:01:52]} 19. Kb1 {[%clk 0:01:31]}  Bb5 {[%clk 0:01:43]} 20. Bf1 {[%clk 0:01:06]}  Ke7 {[%clk 0:01:22]} 21. f4 {[%clk 0:00:48]}  c4 {[%clk 0:01:18]} 22. f5 {[%clk 0:00:46]}  cxb3 {[%clk 0:01:12]} 23. axb3 {[%clk 0:00:46]}  Rhc8 {[%clk 0:01:12]} 24. Rd4 {[%clk 0:00:34]}  Qc7 {[%clk 0:00:59]} 25. Qg3 {[%clk 0:00:31]}  Qa5 {[%clk 0:00:56]} 26. Qe1 {[%clk 0:00:30]}  Qc7 {[%clk 0:00:56]} 27. Qg3 {[%clk 0:00:30]}  gxf5 {[%clk 0:00:56]} 28. gxf5 {[%clk 0:00:30]}  Rg8 {[%clk 0:00:57]} 29. Qf2 {[%clk 0:00:17]}  Qxe5 {[%clk 0:00:56]} 30. Bd3 {[%clk 0:00:12]}  Rg3 {[%clk 0:00:48]} 31. Rf1 {[%clk 0:00:12]}  Rxe3 {[%clk 0:00:43]} 32. fxe6 {[%clk 0:00:12]}  fxe6 {[%clk 0:00:18]} 33. Qf7+ {[%clk 0:00:11]}  Kd6 {[%clk 0:00:18]} 34. Rb4 {[%clk 0:00:03]}  Bxd3 {[%clk 0:00:13]} 35. Rb6+ {[%clk 0:00:03]}  Kc5 {[%clk 0:00:13]} 36. Qb7 {[%clk 0:00:04]}  Bxc2+ {[%clk 0:00:12]} 37. Ka1 {[%clk 0:00:03]}  Re1+ {[%clk 0:00:11]} 38. Ka2 {[%clk 0:00:03]}  Rxf1 {[%clk 0:00:09]} 39. Qc6+ {[%clk 0:00:03]}  Kd4 {[%clk 0:00:09]} 40. Rb4+ {[%clk 0:00:03]}  Kd3 {[%clk 0:00:10]} 41. Qc4+ {[%clk 0:00:01]}  dxc4 {[%clk 0:00:10]} 0-1


[Site "https://www.chess.com"]